[Event "GER-chT States Women 2022"]
[Site "Braunfels"]
[Date "2022.06.16"]
[Round "1.39"]
[White "Perovic-Ottstadt, Sanja"]
[Black "Neumeyer, Hannelore"]
[Result "0-1"]
[ECO "D05"]
[WhiteElo "1507"]
[BlackElo "1877"]
[Annotator "NA RC COMBH"]
[PlyCount "66"]
[EventDate "2022.06.15"]
[EventType "swiss"]
[EventCountry "GER"]
[SourceTitle "playchess.com"]
[Source "ChessBase"]
[SourceQuality "1"]
[TimeControl "40/5400+30:1800+30"]

1. d4 {[%emt 0:00:03]} d5 {[%emt 0:00:10]} 2. Nf3 {[%emt 0:00:08]} Nf6 {[%emt 0:00:23]} 3. e3 {[%emt 0:00:18]} e6 {[%emt 0:02:29]} 4. Bd3 {[%emt 0:00:35]} c5 {[%emt 0:00:54]} 5. c3 {[%emt 0:00:22]} Nc6 {[%emt 0:00:45]} 6. Nbd2 {[%emt 0:00:33]} Bd6 {[%emt 0:03:02]} 7. O-O {[%emt 0:00:34]} e5 {[%emt 0:07:35]} 8. dxe5 {[%emt 0:01:48]} Nxe5 {[%emt 0:06:34]} 9. Nxe5 {[%emt 0:00:39]} Bxe5 {[%emt 0:00:09]} 10. Nf3 {[%emt 0:00:15]} Bc7 {[%emt 0:00:50]} 11. Re1 {[%emt 0:01:42]} O-O {[%emt 0:01:26]} 12. b3 {[%emt 0:02:09]} Bg4 {[%emt 0:03:42]} 13. Be2 {[%emt 0:01:09]} Qd6 {[%emt 0:02:25]} 14. g3 {[%emt 0:00:56]} Rad8 {[%emt 0:03:18]} 15. Bb2 {[%emt 0:00:50]} Qc6 {[%emt 0:01:28]} 16. Rc1 {[%emt 0:01:38]} Rfe8 {[%emt 0:03:48]} 17. Qc2 {[%emt 0:03:10]} d4 {[%emt 0:11:43]} 18. Nh4 {[%emt 0:06:19]} Bxe2 {[%emt 0:00:56]} 19. Qxe2 {[%emt 0:00:15]} d3 {[%emt 0:00:11]} 20. Qf3 {[%emt 0:06:57]} Qxf3 {[%emt 0:01:06]} 21. Nxf3 {[%emt 0:00:10]} d2 {[%emt 0:00:04]} 22. Nxd2 {[%emt 0:05:10]} Rxd2 {[%emt 0:00:10]} 23. Rb1 {[%emt 0:00:21]} Red8 {[%emt 0:02:04]} 24. c4 {[%emt 0:00:31]} Ne4 {[%emt 0:01:11]} 25. f3 {[%emt 0:01:05]} Ng5 {[%emt 0:00:43]} 26. Rf1 {[%emt 0:00:53]} Nh3+ {[%emt 0:01:26]} 27. Kh1 {[%emt 0:00:36]} Ba5 {[%emt 0:04:05]} 28. a3 {[%emt 0:01:11]} R8d3 {[%emt 0:21:18]} 29. Bc1 {[%emt 0:05:00]} Rd1 {[%emt 0:01:40]} 30. Rxd1 {[%emt 0:00:35]} Rxd1+ {[%emt 0:00:10]} 31. Kg2 {[%emt 0:00:24]} Ng5 {[%emt 0:01:50]} 32. e4 {[%emt 0:01:11]} Ne6 {[%emt 0:00:28]} 33. f4 {[%emt 0:01:37]} Bd2 {[%emt 0:00:36]} 0-1

[Event "GER-chT States Women 2022"]
[Site "Braunfels"]
[Date "2022.06.16"]
[Round "1.40"]
[White "Gottschall, Ina"]
[Black "Weinmann, Helene"]
[Result "1-0"]
[ECO "D53"]
[WhiteElo "1612"]
[BlackElo "1468"]
[Annotator "NA RC COMBH"]
[PlyCount "79"]
[EventDate "2022.06.15"]
[EventType "swiss"]
[EventCountry "GER"]
[SourceTitle "playchess.com"]
[Source "ChessBase"]
[SourceQuality "1"]
[TimeControl "40/5400+30:1800+30"]

1. d4 {[%emt 0:00:04]} Nf6 {[%emt 0:00:11]} 2. c4 {[%emt 0:00:06]} d5 {[%emt 0:00:22]} 3. Nc3 {[%emt 0:00:14]} e6 {[%emt 0:00:54]} 4. Bg5 {[%emt 0:00:44]} Be7 {[%emt 0:00:15]} 5. h3 {[%emt 0:00:35]} Nbd7 {[%emt 0:02:15]} 6. e3 {[%emt 0:01:39]} O-O {[%emt 0:00:44]} 7. Nf3 {[%emt 0:00:33]} dxc4 {[%emt 0:00:30]} 8. Bxc4 {[%emt 0:00:12]} Nb6 {[%emt 0:00:17]} 9. Bb3 {[%emt 0:01:57]} Bd7 {[%emt 0:00:51]} 10. Ne5 {[%emt 0:01:56]} Be8 {[%emt 0:00:46]} 11. O-O {[%emt 0:02:36]} Nfd5 {[%emt 0:00:28]} 12. Bxe7 {[%emt 0:00:49]} Nxe7 {[%emt 0:00:30]} 13. Qd3 {[%emt 0:07:50]} c6 {[%emt 0:04:30]} 14. Bc2 {[%emt 0:03:28]} Ng6 {[%emt 0:00:37]} 15. Ne2 {[%emt 0:03:53]} Nd5 {[%emt 0:00:36]} 16. a3 {[%emt 0:01:54]} Nf6 {[%emt 0:00:16]} 17. Rad1 {[%emt 0:02:47]} Qc7 {[%emt 0:00:26]} 18. Nxg6 {[%emt 0:01:17]} hxg6 {[%emt 0:01:34]} 19. Qb3 {[%emt 0:04:23]} Nd5 {[%emt 0:01:20]} 20. Ng3 {[%emt 0:15:56]} Qb6 {[%emt 0:00:55]} 21. Rd3 {[%emt 0:08:34]} Qxb3 {[%emt 0:00:37]} 22. Bxb3 {[%emt 0:00:56]} Bd7 {[%emt 0:01:31]} 23. Ne4 {[%emt 0:03:42]} Rad8 {[%emt 0:02:15]} 24. Rfd1 {[%emt 0:07:05]} Bc8 {[%emt 0:05:05]} 25. h4 {[%emt 0:00:55]} f6 {[%emt 0:01:51]} 26. g3 {[%emt 0:00:25]} b6 {[%emt 0:01:00]} 27. Nc3 {[%emt 0:02:07]} Ba6 {[%emt 0:02:08]} 28. R3d2 {[%emt 0:00:55]} Kf7 {[%emt 0:01:10]} 29. e4 {[%emt 0:01:35]} Ne7 {[%emt 0:01:20]} 30. d5 {[%emt 0:01:30]} cxd5 {[%emt 0:01:06]} 31. exd5 {[%emt 0:00:14]} exd5 {[%emt 0:02:30]} 32. Nxd5 {[%emt 0:00:21]} Nxd5 {[%emt 0:01:15]} 33. Bxd5+ {[%emt 0:00:56]} Ke7 {[%emt 0:00:54]} 34. Re1+ {[%emt 0:00:29]} Kd6 {[%emt 0:02:15]} 35. Bb7+ {[%emt 0:01:23]} Kc7 {[%emt 0:01:31]} 36. Re7+ {[%emt 0:01:10]} Kb8 {[%emt 0:00:33]} 37. Rxd8+ {[%emt 0:00:22]} Rxd8 {[%emt 0:00:02]} 38. Bxa6 {[%emt 0:00:21]} Rd2 {[%emt 0:02:23]} 39. Rb7+ {[%emt 0:00:24]} Ka8 {[%emt 0:00:10]} 40. Rxg7 {[%emt 0:00:10]} 1-0

[Event "GER-chT States Women 2022"]
[Site "Braunfels"]
[Date "2022.06.17"]
[Round "3.1"]
[White "Doluhanova, Evgeniya"]
[Black "Zatonskih, Anna"]
[Result "1/2-1/2"]
[ECO "C47"]
[WhiteElo "2270"]
[BlackElo "2386"]
[Annotator "TA"]
[PlyCount "79"]
[EventDate "2022.06.15"]
[EventType "swiss"]
[EventCountry "GER"]
[SourceTitle "playchess.com"]
[Source "ChessBase"]
[SourceQuality "1"]
[TimeControl "40/5400+30:1800+30"]

{[%evp 23,79,6,11,10,16,10,21,0,26,44,67,59,140,29,36,34,85,75,98,97,95,95,97,85,135,120,200,188,332,158,167,134,135,135,105,94,135,133,133,125,132,99,108,99,100,100,97,89,138,98,122,130,125,109,137,99,95,95]} 1. e4 {[%emt 0:02:02]} e5 {[%emt 0:00:15]} 2. Nf3 {[%emt 0:00:08]} Nf6 {[%emt 0:00:06]} 3. Nc3 {[%emt 0:01:21]} Nc6 {[%emt 0:00:22]} 4. d4 {[%emt 0:00:13]} exd4 {[%emt 0:01:00]} 5. Nxd4 {[%emt 0:00:10]} Bb4 {[%emt 0:00:21]} 6. Nxc6 {[%emt 0:00:06]} bxc6 {[%emt 0:00:04]} 7. Bd3 {[%emt 0:00:03]} d5 {[%emt 0:01:28]} 8. exd5 {[%emt 0:00:07]} cxd5 {[%emt 0:00:04]} 9. O-O {[%emt 0:00:12]} O-O {[%emt 0:00:05]} 10. Bg5 {[%emt 0:00:19]} c6 {[%emt 0:02:36]} 11. Qf3 {[%emt 0:00:06]} Be7 {[%emt 0:02:19]} 12. Rfe1 {[%emt 0:04:51]} Re8 {[%emt 0:14:48]} 13. h3 {[%emt 0:01:36] C47: Scotch Four Knights and Four Knights with 4 g3.} h6 {[%emt 0:06:25]} 14. Bf4 {[%emt 0:07:40]} Be6 {[%emt 0:04:44]} 15. Rad1 {[%emt 0:01:11] The position is equal. has lost popularity (15.Ne2).} Qa5 {[%emt 0:07:35]} 16. Ne2 {[%emt 0:07:40]} c5 {[%emt 0:18:34] [#] Prevents Nd4.} 17. Ng3 $146 {[%emt 0:20:08]} ({Predecessor:} 17. Be5 Rad8 18. Ng3 c4 19. Bf5 Qa6 20. Rd4 Bc5 21. Bxf6 Bxf5 22. Rxe8+ Rxe8 23. Rxd5 Qxf6 24. Rxc5 {½-½ (69) Parligras,C (2299)-Lilov,V (2434) Albena 2013}) 17... d4 {[%emt 0:04:42] [#]} (17... Bf8 $14) 18. Nf5 {[%emt 0:16:42]} (18. Nh5 $1 $16 {[%cal Rh5g7] Strongly threatening Nxg7!} c4 {[#]} 19. Rxe6 $1 fxe6 20. Nxf6+ Bxf6 21. Bxc4) 18... Bxf5 $11 {[%emt 0:00:24]} 19. Bxf5 {[%emt 0:00:07][%cal Oe1e7] Threatens to win with Rxe7!} Rad8 {[%emt 0:02:12]} (19... Bf8 $14 20. Rxe8 Rxe8) 20. Bd3 $36 {[%emt 0:05:05][%mdl 2048] White has strong initiative.} Bd6 {[%emt 0:09:51]} 21. Rxe8+ {[%emt 0:06:07]} Nxe8 {[%emt 0:00:04]} 22. Bd2 {[%emt 0:00:38]} Qb6 {[%emt 0:00:26]} 23. b3 {[%emt 0:00:13]} Bb8 {[%emt 0:04:15]} (23... Nf6 $142) 24. Re1 {[%emt 0:01:24]} Qd6 {[%emt 0:04:07] Inhibits Re7.} (24... Nf6 $16) 25. g3 $18 {[%emt 0:01:19] Active counter play!} Qd7 {[%emt 0:01:11]} (25... Nf6 $142 26. Bc4 Rf8) 26. Kg2 {[%emt 0:05:17]} (26. Ba5 $18 {is the precise move to win.}) 26... Nd6 {[%emt 0:01:54]} 27. Qd5 {[%emt 0:05:59]} Qb7 {[%emt 0:08:28]} 28. Qxb7 {[%emt 0:01:46]} Nxb7 {[%emt 0:00:02]} 29. Bb5 {[%emt 0:00:57]} Bd6 {[%emt 0:03:31]} 30. Bc6 {[%emt 0:02:04]} Rb8 {[%emt 0:00:01]} 31. Kf3 {[%emt 0:00:59]} Kf8 {[%emt 0:00:37]} 32. Ke4 {[%emt 0:04:11]} Nd8 {[%emt 0:02:27]} 33. Bd5 {[%emt 0:02:35]} Ne6 {[%emt 0:01:00]} 34. Kd3 {[%emt 0:00:58]} Nc7 {[%emt 0:00:27]} 35. Bc4 {[%emt 0:00:30]} Re8 {[%emt 0:00:19]} (35... Rc8 $142) 36. a3 {[%emt 0:01:40]} Rxe1 {[%emt 0:00:45]} 37. Bxe1 {[%emt 0:00:07]} Ke7 {[%emt 0:00:30]} 38. Ba5 {[%emt 0:01:01]} Na8 {[%emt 0:00:31]} 39. Bd5 {[%emt 0:01:36] This bishop pair is nice.} Nb6 {[%emt 0:00:01]} 40. Bxb6 {[%emt 0:00:41] Weighted Error Value: White=0.21 (precise) /Black=0.27 (precise)} 1/2-1/2

[Event "GER-chT States Women 2022"]
[Site "Braunfels"]
[Date "2022.06.17"]
[Round "3.2"]
[White "Cosma, Elena-Luminita"]
[Black "Jussupow, Nadia"]
[Result "1/2-1/2"]
[ECO "A40"]
[WhiteElo "2277"]
[BlackElo "2146"]
[Annotator "TA"]
[PlyCount "68"]
[EventDate "2022.06.15"]
[EventType "swiss"]
[EventCountry "GER"]
[SourceTitle "playchess.com"]
[Source "ChessBase"]
[SourceQuality "1"]
[TimeControl "40/5400+30:1800+30"]

{[%evp 9,68,35,76,79,91,91,112,101,87,75,74,64,83,70,73,68,75,77,107,56,58,61,73,32,60,56,48,21,27,6,8,25,10,0,0,-53,-71,-92,-33,-66,-33,-34,-26,-36,-39,-41,0,0,0,0,0,0,0,0,0,0,0,0,0,0,0]} 1. d4 {[%emt 0:00:03]} b6 {[%emt 0:00:07]} 2. e4 {[%emt 0:06:26]} Bb7 {[%emt 0:00:16]} 3. Bd3 {[%emt 0:00:13]} e6 {[%emt 0:00:26]} 4. Nf3 {[%emt 0:00:12]} c5 {[%emt 0:07:31]} 5. c3 {[%emt 0:00:49]} Qc7 {[%emt 0:04:01]} 6. O-O {[%emt 0:01:39] B00: Queen's Fianchetto Defence, Nimzowitsch Defence.} Nf6 {[%emt 0:01:49]} 7. Re1 {[%emt 0:02:16]} d6 {[%emt 0:01:57]} 8. Bg5 {[%emt 0:12:58] White is better.} Be7 {[%emt 0:03:20]} 9. Na3 {[%emt 0:07:40] Black must now prevent e5.} a6 {[%emt 0:09:04]} 10. e5 {[%emt 0:16:47]} dxe5 {[%emt 0:01:12]} 11. dxe5 {[%emt 0:00:06]} Nd5 {[%emt 0:02:20]} 12. Nc4 {[%emt 0:00:30] [#]} O-O $146 {[%emt 0:02:03]} ({Predecessor:} 12... b5 13. Bxe7 Kxe7 14. Nd6 Nd7 15. Nxb7 Qxb7 16. Ng5 h6 17. Ne4 Qc7 18. c4 bxc4 19. Bxc4 {1-0 (34) Baron Rodriguez,J (2350)-Cismaru,C San Agustin 1998}) 13. Nd6 {[%emt 0:03:49]} f6 {[%emt 0:09:38]} 14. Nxb7 {[%emt 0:03:17] White is much more active.} (14. Bh4 $16 Bc6 15. Bc2) 14... fxg5 $14 {[%emt 0:03:12]} 15. Nd6 {[%emt 0:00:08] Hoping for Be4.} Nc6 {[%emt 0:00:52]} 16. Bc4 {[%emt 0:16:11]} (16. g3 $5 {[%cal Rd3f5]}) 16... Nf4 {[%emt 0:21:36]} (16... Bxd6 $2 17. exd6 Qf7 18. Rxe6 $3 $18 {[%mdl 512]}) 17. g3 $1 {[%emt 0:00:17]} ({And not} 17. Qb3 Kh8 18. Bf1 (18. Bxe6 Na5 $17) 18... g4 $17) 17... b5 $1 {[%emt 0:01:42]} 18. gxf4 {[%emt 0:02:41]} bxc4 {[%emt 0:00:59]} 19. Nxg5 {[%emt 0:00:45]} Bxg5 {[%emt 0:03:40]} 20. fxg5 {[%emt 0:00:32]} Rf4 {[%emt 0:00:32]} 21. g6 {[%emt 0:08:01]} hxg6 {[%emt 0:00:47]} 22. f3 {[%emt 0:10:15]} (22. Re4 $11 Rxe4 23. Nxe4) 22... Raf8 $15 {[%emt 0:00:57]} 23. Re3 {[%emt 0:00:08] [#]} Qe7 {[%emt 0:00:38]} (23... Ne7 $1 $17 {[%cal Re7d5] aiming for ...Nd5.} 24. Re4 Rxf3) 24. Kh1 {[%emt 0:01:27]} Qg5 {[%emt 0:01:27]} (24... g5 $5 {[%cal Rg5g4]} 25. Rb1 g4 $19) 25. Qe2 {[%emt 0:02:29]} Qh5 {[%emt 0:01:45]} 26. Rg1 $1 {[%emt 0:00:40]} Ne7 {[%emt 0:06:05] ...Nd5 is the strong threat.} 27. Qg2 $1 {[%emt 0:01:19]} Rxf3 {[%emt 0:04:16]} (27... Nd5 {is interesting.} 28. Re4 Rxf3 29. Qxg6 Qxg6 30. Rxg6 Nf4) 28. Rxf3 {[%emt 0:00:18] The position is equal.} Qxf3 {[%emt 0:00:55]} 29. Qxf3 {[%emt 0:00:19]} Rxf3 {[%emt 0:00:04]} 30. Nxc4 {[%emt 0:00:07] KRN-KRN} Rf2 {[%emt 0:02:39]} 31. Rg2 {[%emt 0:01:18]} Rf1+ {[%emt 0:00:07]} 32. Rg1 {[%emt 0:00:04]} Rf2 {[%emt 0:00:58]} 33. Rg2 {[%emt 0:00:08]} Rf1+ {[%emt 0:00:55]} 34. Rg1 {[%emt 0:00:04]} Rf2 {[%emt 0:01:05] Weighted Error Value: White=0.12 (very precise) /Black=0.09 (flawless)} 1/2-1/2

[Event "GER-chT States Women 2022"]
[Site "Braunfels"]
[Date "2022.06.17"]
[Round "3.3"]
[White "Kostak, Tatiana"]
[Black "Voicu-Jagodzinsky, Carmen"]
[Result "1/2-1/2"]
[ECO "A00"]
[WhiteElo "2102"]
[BlackElo "2291"]
[Annotator "NA RC"]
[PlyCount "58"]
[EventDate "2022.06.15"]
[EventType "swiss"]
[EventCountry "GER"]
[SourceTitle "playchess.com"]
[Source "ChessBase"]
[SourceQuality "1"]
[TimeControl "40/5400+30:1800+30"]

1. a3 {[%emt 0:00:39]} d5 {[%emt 0:00:55]} 2. Nc3 {[%emt 0:00:13]} d4 {[%emt 0:00:14]} 3. Nb1 {[%emt 0:00:26]} e5 {[%emt 0:02:33]} 4. e4 {[%emt 0:00:14]} Be6 {[%emt 0:03:45]} 5. Nf3 {[%emt 0:02:45]} Bd6 {[%emt 0:02:20]} 6. Bd3 {[%emt 0:06:29]} c5 {[%emt 0:08:06]} 7. Qe2 {[%emt 0:00:29]} Nf6 {[%emt 0:03:27]} 8. Ng5 {[%emt 0:08:28]} Bg4 {[%emt 0:05:13]} 9. f3 {[%emt 0:00:59]} Bh5 {[%emt 0:00:03]} 10. Bc4 {[%emt 0:00:47]} h6 {[%emt 0:00:46]} 11. Nh3 {[%emt 0:00:11]} g5 {[%emt 0:00:48]} 12. Nf2 {[%emt 0:00:28]} a6 {[%emt 0:00:38]} 13. a4 {[%emt 0:04:39]} Nc6 {[%emt 0:00:23]} 14. d3 {[%emt 0:00:54]} b5 {[%emt 0:12:15]} 15. Bb3 {[%emt 0:05:15]} Bg6 {[%emt 0:08:12]} 16. g4 {[%emt 0:03:54]} Be7 {[%emt 0:02:54]} 17. Bd2 {[%emt 0:01:45]} b4 {[%emt 0:06:08]} 18. Bc1 {[%emt 0:01:40]} Na5 {[%emt 0:04:41]} 19. Nd2 {[%emt 0:00:31]} h5 {[%emt 0:00:37]} 20. h3 {[%emt 0:00:58]} Nd7 {[%emt 0:02:22]} 21. Nc4 {[%emt 0:00:18]} Nxc4 {[%emt 0:03:01]} 22. Bxc4 {[%emt 0:00:09]} Qb6 {[%emt 0:05:55]} 23. Bd2 {[%emt 0:01:20]} Nf8 {[%emt 0:00:40]} 24. b3 {[%emt 0:02:27]} Ne6 {[%emt 0:00:21]} 25. Bxe6 {[%emt 0:00:22]} Qxe6 {[%emt 0:01:11]} 26. Qf1 {[%emt 0:02:43]} Kd7 {[%emt 0:04:41]} 27. Nd1 {[%emt 0:00:24]} Rh6 {[%emt 0:02:24]} 28. Nf2 {[%emt 0:00:51]} Rah8 {[%emt 0:03:44]} 29. O-O-O {[%emt 0:02:47]} h4 {[%emt 0:08:31]} 1/2-1/2

[Event "GER-chT States Women 2022"]
[Site "Braunfels"]
[Date "2022.06.17"]
[Round "3.4"]
[White "Agrest, Inna"]
[Black "Valkova, Angelika"]
[Result "1-0"]
[ECO "B12"]
[WhiteElo "2265"]
[BlackElo "2066"]
[Annotator "TA"]
[PlyCount "85"]
[EventDate "2022.06.15"]
[EventType "swiss"]
[EventCountry "GER"]
[SourceTitle "playchess.com"]
[Source "ChessBase"]
[SourceQuality "1"]
[TimeControl "40/5400+30:1800+30"]

{[%evp 9,85,-2,18,-22,-22,-42,15,-62,-59,-49,-47,-56,-65,-60,30,-64,-56,-57,-38,-37,-30,-37,-40,-40,-30,-57,-33,-58,-60,-65,-55,-68,-78,-81,-44,-59,-49,-108,-65,-62,-60,-66,72,75,75,75,65,78,82,82,137,142,141,116,125,120,651,632,1045,1038,1004,1004,1004,996,1090,1025,1595,1532,1364,1135,1312,1132,1621,1368,6283,6179,29991,29992]} 1. e4 {[%emt 0:00:03]} c6 {[%emt 0:00:04]} 2. d4 {[%emt 0:00:11]} d5 {[%emt 0:00:05]} 3. f3 {[%emt 0:00:13]} Qb6 {[%emt 0:00:11]} 4. Nc3 {[%emt 0:00:23]} dxe4 {[%emt 0:00:27]} 5. Bc4 {[%emt 0:08:53]} Nf6 {[%emt 0:00:18]} ({Don't play} 5... Qb4 6. Qe2 $14) 6. Bb3 {[%emt 0:02:33] B12: Caro-Kann: Advance Variation.} exf3 {[%emt 0:06:38]} 7. Nxf3 {[%emt 0:00:19]} Bf5 {[#]} (7... e6 $15) 8. O-O $146 {[%emt 0:04:16]} (8. Ne5 $11 e6 9. O-O) ({Predecessor:} 8. Ne5 e6 9. g4 Bg6 10. h4 Nbd7 11. h5 Be4 12. Nxd7 Kxd7 13. Nxe4 Nxe4 14. Qf3 {1-0 (42) Hristodoulou,P (2252)-Dimitrov,R (2476) Kavala 2017}) 8... e6 $15 {[%emt 0:01:11]} 9. Ne5 {[%emt 0:09:46][%cal Of1f5] [#] Rxf5! is the strong threat.} Bg6 {[%emt 0:00:28]} 10. Bg5 {[%emt 0:08:25]} Be7 {[%emt 0:05:53]} 11. Ne2 {[%emt 0:03:37]} Bh5 {[%emt 0:08:36]} ({Black should try} 11... Nbd7 $15 12. Nxd7 Kxd7) 12. c3 {[%emt 0:00:55]} ({Better is} 12. Qe1 $1 $11 Nbd7 13. Nxd7 Kxd7 14. Nf4 Qxd4+ 15. Kh1) 12... Nbd7 {[%emt 0:04:38]} 13. Nxd7 {[%emt 0:12:24]} Nxd7 {[%emt 0:01:07]} 14. Bxe7 {[%emt 0:00:28]} Kxe7 {[%emt 0:00:09][%cal Be8e7,Be7d8,Bd8c8,Bc8b8][%mdl 32]} 15. Qd2 {[%emt 0:01:44] Hoping for Qg5+.} Bxe2 {[%emt 0:04:05]} 16. Qxe2 {[%emt 0:00:46][%cal Of1f7]} Nf6 {[%emt 0:01:41]} 17. Rf4 {[%emt 0:09:16]} Raf8 {[%emt 0:03:56]} 18. Kh1 {[%emt 0:06:13]} Kd8 {[%emt 0:02:55]} 19. Raf1 {[%emt 0:04:54]} Kc8 {[%emt 0:01:57]} 20. Bc4 {[%emt 0:03:18]} Qc7 {[%emt 0:02:14]} 21. Qf2 {[%emt 0:01:20]} h5 {[%emt 0:04:13]} 22. h3 {[%emt 0:01:21]} Kb8 {[%emt 0:03:00][%cal Of6g4]} 23. Be2 {[%emt 0:03:10] Inhibits Ng4.} ({White should play} 23. Re1 $15) 23... Rh6 {[%emt 0:05:19]} 24. a4 {[%emt 0:02:57]} Rfh8 {[%emt 0:01:01]} 25. Kg1 {[%emt 0:00:59]} Qa5 {[%emt 0:05:37]} (25... Re8 $15) 26. Qg3 $16 {[%emt 0:01:42][%csl LRf6,LRg7] And now Rxf6+ would win.} Rg6 {[%emt 0:00:12]} 27. Rg4+ {[%emt 0:01:13]} Qc7 {[%emt 0:02:32]} 28. Rxg6 {[%emt 0:00:56]} fxg6 {[%emt 0:00:07]} 29. Qxg6 {[%emt 0:00:21]} Rh6 {[%emt 0:03:09] [#]} (29... c5 $142) 30. Qg5 $1 {[%emt 0:00:48]} a6 {[%emt 0:01:40]} 31. Bf3 {[%emt 0:01:22]} Nh7 {[%emt 0:03:32]} 32. Qc5 {[%emt 0:02:03] White is much more active. The black rooks are badly placed.} g5 $2 {[%emt 0:00:39][%mdl 8192] This costs Black the game.} (32... h4 $16) 33. Be4 $18 {[%emt 0:00:42] Black must now prevent Bxh7.} Qg3 {[%emt 0:03:27]} 34. Bxh7 {[%emt 0:03:42] White wants to mate with Rf8+.} ({Worse is} 34. Rf8+ Nxf8 35. Qxf8+ Ka7 $11) 34... Rxh7 {[%emt 0:02:14][%mdl 4096] Endgame KQR-KQR} 35. Rf8+ {[%emt 0:01:02]} Kc7 36. Qa5+ {[%emt 0:00:39]} b6 {[%emt 0:00:24]} 37. Qxa6 {[%emt 0:00:35]} Qe3+ {[%emt 0:02:46]} 38. Kh2 {[%emt 0:01:56] Threatening mate with Qa7+.} Rd7 {[%emt 0:00:19]} 39. Qc8+ {[%emt 0:01:13]} Kd6 {[%emt 0:00:10]} 40. Qb8+ {[%emt 0:00:31]} Kd5 {[%emt 0:00:54]} 41. Rf3 {[%emt 0:04:24]} Qe2 {[%emt 0:02:45]} 42. Qxb6 {[%emt 0:00:17] White threatens Qc5+ and mate.} Qc4 {[%emt 0:04:06] Against Qc5+} 43. b3 {[%emt 0:00:31] Weighted Error Value: White=0.20 (precise) /Black=0.63} 1-0

[Event "GER-chT States Women 2022"]
[Site "Braunfels"]
[Date "2022.06.17"]
[Round "3.5"]
[White "Gheng, Simona"]
[Black "Ciolacu, Alessia-Mihaela"]
[Result "1-0"]
[ECO "C77"]
[WhiteElo "1944"]
[BlackElo "2198"]
[Annotator "NA RC"]
[PlyCount "73"]
[EventDate "2022.06.15"]
[EventType "swiss"]
[EventCountry "GER"]
[SourceTitle "playchess.com"]
[Source "ChessBase"]
[SourceQuality "1"]
[TimeControl "40/5400+30:1800+30"]

1. e4 {[%emt 0:00:05]} e5 {[%emt 0:00:10]} 2. Nf3 {[%emt 0:00:08]} Nc6 {[%emt 0:00:05]} 3. Bb5 {[%emt 0:00:12]} a6 {[%emt 0:00:05]} 4. Ba4 {[%emt 0:00:10]} Nf6 {[%emt 0:00:10]} 5. d3 {[%emt 0:00:14]} d6 {[%emt 0:00:08]} 6. c3 {[%emt 0:00:33]} g6 {[%emt 0:00:26]} 7. O-O {[%emt 0:01:28]} Bg7 {[%emt 0:00:18]} 8. Nbd2 {[%emt 0:00:35]} O-O {[%emt 0:01:11]} 9. Re1 {[%emt 0:01:17]} b5 {[%emt 0:01:59]} 10. Bc2 {[%emt 0:00:28]} Bb7 {[%emt 0:01:24]} 11. Nf1 {[%emt 0:00:41]} d5 {[%emt 0:05:01]} 12. Bg5 {[%emt 0:03:21]} h6 {[%emt 0:02:36]} 13. Bh4 {[%emt 0:03:35]} Re8 {[%emt 0:03:07]} 14. Ne3 {[%emt 0:05:50]} d4 {[%emt 0:02:29]} 15. Nd5 {[%emt 0:01:00]} g5 {[%emt 0:01:16]} 16. Nxf6+ {[%emt 0:00:18]} Bxf6 {[%emt 0:00:52]} 17. Bg3 {[%emt 0:00:06]} Bc8 {[%emt 0:13:40]} 18. h3 {[%emt 0:02:47]} g4 {[%emt 0:02:47]} 19. Nh2 {[%emt 0:01:28]} gxh3 {[%emt 0:01:59]} 20. Qh5 {[%emt 0:00:51]} Bg5 {[%emt 0:07:16]} 21. gxh3 {[%emt 0:04:52]} Qf6 {[%emt 0:02:27]} 22. Ng4 {[%emt 0:01:37]} Bxg4 {[%emt 0:01:55]} 23. Qxg4 {[%emt 0:00:33]} Kh8 {[%emt 0:01:11]} 24. Bb3 {[%emt 0:05:17]} Rad8 {[%emt 0:08:07]} 25. Rad1 {[%emt 0:04:36]} Na5 {[%emt 0:06:09]} 26. Kh2 {[%emt 0:10:47]} Bf4 {[%emt 0:01:42]} 27. Bxf4 {[%emt 0:00:55]} exf4 {[%emt 0:00:43]} 28. e5 {[%emt 0:04:24]} Rxe5 {[%emt 0:02:38]} 29. Rxe5 {[%emt 0:00:25]} Qxe5 {[%emt 0:00:01]} 30. Bxf7 {[%emt 0:00:50]} Qf6 {[%emt 0:07:10]} 31. Be6 {[%emt 0:02:40]} Nc6 {[%emt 0:01:08]} 32. Qf5 {[%emt 0:02:04]} Qh4 {[%emt 0:04:02]} 33. Rg1 {[%emt 0:01:09]} Qe7 {[%emt 0:16:44]} 34. Rg6 {[%emt 0:01:24]} Qf8 {[%emt 0:00:23]} 35. Rg8+ {[%emt 0:00:53]} Qxg8 {[%emt 0:00:15]} 36. Bxg8 {[%emt 0:00:06]} Kxg8 {[%emt 0:00:09]} 37. Qe6+ {[%emt 0:00:09]} 1-0

[Event "GER-chT States Women 2022"]
[Site "Braunfels"]
[Date "2022.06.17"]
[Round "3.6"]
[White "Kuckling, Hannah"]
[Black "Timofeeva, Galina"]
[Result "1-0"]
[ECO "B24"]
[WhiteElo "2070"]
[BlackElo "1979"]
[Annotator "NA RC"]
[PlyCount "43"]
[EventDate "2022.06.15"]
[EventType "swiss"]
[EventCountry "GER"]
[SourceTitle "playchess.com"]
[Source "ChessBase"]
[SourceQuality "1"]
[TimeControl "40/5400+30:1800+30"]

1. e4 {[%emt 0:00:03]} c5 {[%emt 0:00:06]} 2. Nc3 {[%emt 0:00:05]} Nc6 {[%emt 0:00:11]} 3. Bb5 {[%emt 0:00:07]} d6 {[%emt 0:03:44]} 4. Bxc6+ {[%emt 0:00:15]} bxc6 {[%emt 0:00:05]} 5. f4 {[%emt 0:00:08]} g6 {[%emt 0:10:52]} 6. Nf3 {[%emt 0:00:09]} Bg7 {[%emt 0:01:44]} 7. d3 {[%emt 0:00:08]} e6 {[%emt 0:10:02]} 8. O-O {[%emt 0:00:12]} Ne7 {[%emt 0:00:25]} 9. Qe1 {[%emt 0:00:29]} d5 {[%emt 0:04:30]} 10. Qf2 {[%emt 0:02:46]} d4 {[%emt 0:02:10]} 11. Na4 {[%emt 0:04:29]} Qa5 {[%emt 0:06:39]} 12. b3 {[%emt 0:02:03]} Ba6 {[%emt 0:05:57]} 13. Bd2 {[%emt 0:02:02]} Qb5 {[%emt 0:01:34]} 14. Qh4 {[%emt 0:03:43]} h6 {[%emt 0:24:39]} 15. Ne5 {[%emt 0:04:44]} f6 {[%emt 0:07:19]} 16. Nxg6 {[%emt 0:04:09]} Nxg6 {[%emt 0:00:34]} 17. Qh5 {[%emt 0:00:06]} O-O-O {[%emt 0:00:57]} 18. Qxg6 {[%emt 0:00:07]} Rd7 {[%emt 0:01:10]} 19. Rae1 {[%emt 0:04:24]} Kc7 {[%emt 0:05:20]} 20. e5 {[%emt 0:04:04]} Rf8 {[%emt 0:01:49]} 21. f5 {[%emt 0:01:35]} fxe5 {[%emt 0:05:59]} 22. fxe6 {[%emt 0:00:19]} 1-0